[Event "January 9 Late 2024"]
[Site "https://www.chess.com"]
[Date "2024.01.09"]
[Round "5"]
[White "Skvortsov, Andrei"]
[Black "Svane, Frederik"]
[Result "1/2-1/2"]
[Board "33"]
[TimeControl "180+1"]
[WhiteFideId "24108600"]
[BlackFideId "12923044"]
[WhiteElo "2685"]
[BlackElo "2955"]
[WhiteTeam "MNE"]
[BlackTeam "GER"]
[WhiteClock "0:00:02"]
[BlackClock "0:00:05"]

1. e4 {[%clk 0:03:00]}  c5 {[%clk 0:03:00]} 2. d4 {[%clk 0:02:59]}  cxd4 {[%clk 0:03:00]} 3. Qxd4 {[%clk 0:03:00]}  Nc6 {[%clk 0:02:59]} 4. Qd3 {[%clk 0:03:01]}  g6 {[%clk 0:02:59]} 5. Nc3 {[%clk 0:03:01]}  Bg7 {[%clk 0:02:59]} 6. Nf3 {[%clk 0:03:01]}  Nf6 {[%clk 0:02:58]} 7. Be2 {[%clk 0:03:02]}  O-O {[%clk 0:02:58]} 8. O-O {[%clk 0:03:02]}  d6 {[%clk 0:02:58]} 9. Nd5 {[%clk 0:03:03]}  Nd7 {[%clk 0:02:48]} 10. c3 {[%clk 0:03:01]}  Nc5 {[%clk 0:02:48]} 11. Qc2 {[%clk 0:03:01]}  Bg4 {[%clk 0:02:42]} 12. Bg5 {[%clk 0:02:54]}  h6 {[%clk 0:02:19]} 13. Bh4 {[%clk 0:02:53]}  g5 {[%clk 0:01:59]} 14. Bg3 {[%clk 0:02:51]}  Bh5 {[%clk 0:01:58]} 15. Rfe1 {[%clk 0:02:46]}  Bg6 {[%clk 0:01:58]} 16. Bf1 {[%clk 0:02:37]}  e6 {[%clk 0:01:58]} 17. Nb4 {[%clk 0:02:33]}  d5 {[%clk 0:01:58]} 18. Nxc6 {[%clk 0:02:25]}  bxc6 {[%clk 0:01:58]} 19. Ne5 {[%clk 0:02:25]}  Bxe4 {[%clk 0:01:57]} 20. Qd1 {[%clk 0:02:21]}  Rc8 {[%clk 0:01:50]} 21. b4 {[%clk 0:02:19]}  Nd7 {[%clk 0:01:50]} 22. Nxd7 {[%clk 0:02:14]}  Qxd7 {[%clk 0:01:50]} 23. Rxe4 {[%clk 0:02:05]}  f5 {[%clk 0:01:50]} 24. Re2 {[%clk 0:01:46]}  f4 {[%clk 0:01:31]} 25. Rc1 {[%clk 0:01:43]}  fxg3 {[%clk 0:01:27]} 26. hxg3 {[%clk 0:01:41]}  Qf7 {[%clk 0:01:21]} 27. Qd3 {[%clk 0:01:29]}  e5 {[%clk 0:01:20]} 28. f3 {[%clk 0:01:28]}  c5 {[%clk 0:01:16]} 29. bxc5 {[%clk 0:01:22]}  Rxc5 {[%clk 0:01:17]} 30. Rec2 {[%clk 0:01:18]}  Rfc8 {[%clk 0:01:14]} 31. c4 {[%clk 0:01:16]}  Qc7 {[%clk 0:01:11]} 32. Qf5 {[%clk 0:01:14]}  e4 {[%clk 0:00:53]} 33. fxe4 {[%clk 0:01:04]}  dxc4 {[%clk 0:00:46]} 34. Qe6+ {[%clk 0:00:46]}  Kh7 {[%clk 0:00:40]} 35. Rxc4 {[%clk 0:00:37]}  Qxg3 {[%clk 0:00:35]} 36. e5 {[%clk 0:00:20]}  Qe3+ {[%clk 0:00:14]} 37. Kh2 {[%clk 0:00:16]}  Bxe5+ {[%clk 0:00:06]} 38. Kh1 {[%clk 0:00:16]}  Qxc1 {[%clk 0:00:06]} 39. Rxc1 {[%clk 0:00:15]}  Rxc1 {[%clk 0:00:07]} 40. Qf5+ {[%clk 0:00:12]}  Kg8 {[%clk 0:00:07]} 41. Qe6+ {[%clk 0:00:12]}  Kh7 {[%clk 0:00:05]} 42. Qf5+ {[%clk 0:00:12]}  Kg8 {[%clk 0:00:05]} 43. Qe6+ {[%clk 0:00:09]}  Kf8 {[%clk 0:00:06]} 44. Qxe5 {[%clk 0:00:09]}  Rxf1+ {[%clk 0:00:05]} 45. Kh2 {[%clk 0:00:09]}  Rc6 {[%clk 0:00:02]} 46. Qb8+ {[%clk 0:00:09]}  Ke7 {[%clk 0:00:02]} 47. Qxa7+ {[%clk 0:00:10]}  Kd6 {[%clk 0:00:01]} 48. Qb8+ {[%clk 0:00:09]}  Kd7 {[%clk 0:00:01]} 49. Qb7+ {[%clk 0:00:09]}  Kd6 {[%clk 0:00:01]} 50. Qb4+ {[%clk 0:00:09]}  Kd7 {[%clk 0:00:02]} 51. Qd4+ {[%clk 0:00:07]}  Kc8 {[%clk 0:00:02]} 52. Qh8+ {[%clk 0:00:07]}  Kb7 {[%clk 0:00:03]} 53. Qb2+ {[%clk 0:00:07]}  Kc8 {[%clk 0:00:03]} 54. Qh8+ {[%clk 0:00:07]}  Kb7 {[%clk 0:00:03]} 55. Qd4 {[%clk 0:00:07]}  Rff6 {[%clk 0:00:03]} 56. a4 {[%clk 0:00:07]}  Ra6 {[%clk 0:00:03]} 57. Qd7+ {[%clk 0:00:07]}  Kb6 {[%clk 0:00:03]} 58. Qd5 {[%clk 0:00:08]}  Rc6 {[%clk 0:00:03]} 59. Qb5+ {[%clk 0:00:06]}  Kc7 {[%clk 0:00:03]} 60. Qe5+ {[%clk 0:00:07]}  Kd7 {[%clk 0:00:03]} 61. Qd5+ {[%clk 0:00:07]}  Ke7 {[%clk 0:00:04]} 62. Qe5+ {[%clk 0:00:08]}  Kf7 {[%clk 0:00:05]} 63. Qf5+ {[%clk 0:00:08]}  Kg7 {[%clk 0:00:05]} 64. Qe5+ {[%clk 0:00:09]}  Rf6 {[%clk 0:00:06]} 65. Qe7+ {[%clk 0:00:09]}  Rf7 {[%clk 0:00:06]} 66. Qe5+ {[%clk 0:00:09]}  Raf6 {[%clk 0:00:06]} 67. a5 {[%clk 0:00:09]}  Ra7 {[%clk 0:00:07]} 68. Qc5 {[%clk 0:00:06]}  Rfa6 {[%clk 0:00:07]} 69. Qe5+ {[%clk 0:00:06]}  Kg6 {[%clk 0:00:07]} 70. Qe4+ {[%clk 0:00:06]}  Kg7 {[%clk 0:00:07]} 71. Qe5+ {[%clk 0:00:07]}  Kf7 {[%clk 0:00:08]} 72. Qf5+ {[%clk 0:00:07]}  Ke7 {[%clk 0:00:08]} 73. Qe5+ {[%clk 0:00:08]}  Kd7 {[%clk 0:00:09]} 74. Qd5+ {[%clk 0:00:08]}  Ke8 {[%clk 0:00:07]} 75. Qe5+ {[%clk 0:00:08]}  Kf8 {[%clk 0:00:08]} 76. Qf5+ {[%clk 0:00:08]}  Kg8 {[%clk 0:00:07]} 77. Qd5+ {[%clk 0:00:09]}  Rf7 {[%clk 0:00:06]} 78. Qd8+ {[%clk 0:00:07]}  Kg7 {[%clk 0:00:06]} 79. Qd4+ {[%clk 0:00:07]}  Rff6 {[%clk 0:00:05]} 80. Qe5 {[%clk 0:00:06]}  Kg6 {[%clk 0:00:05]} 81. Qe4+ {[%clk 0:00:06]}  Kf7 {[%clk 0:00:04]} 82. Qb7+ {[%clk 0:00:06]}  Kg6 {[%clk 0:00:04]} 83. Qe4+ {[%clk 0:00:06]}  Kh5 {[%clk 0:00:02]} 84. Qe8+ {[%clk 0:00:04]}  Kg4 {[%clk 0:00:01]} 85. Qe2+ {[%clk 0:00:04]}  Kf5 {[%clk 0:00:01]} 86. Qd3+ {[%clk 0:00:04]}  Ke5 {[%clk 0:00:02]} 87. Qe3+ {[%clk 0:00:05]}  Kd5 {[%clk 0:00:02]} 88. Qd3+ {[%clk 0:00:05]}  Kc5 {[%clk 0:00:03]} 89. Qc3+ {[%clk 0:00:06]}  Kb5 {[%clk 0:00:03]} 90. Qc7 {[%clk 0:00:06]}  Rfc6 {[%clk 0:00:03]} 91. Qb7+ {[%clk 0:00:06]}  Kxa5 {[%clk 0:00:03]} 92. Qb3 {[%clk 0:00:06]}  Rab6 {[%clk 0:00:04]} 93. Qa3+ {[%clk 0:00:07]}  Kb5 {[%clk 0:00:04]} 94. Qd3+ {[%clk 0:00:08]}  Kc5 {[%clk 0:00:04]} 95. Qe3+ {[%clk 0:00:08]}  Kd6 {[%clk 0:00:04]} 96. Qd4+ {[%clk 0:00:09]}  Kc7 {[%clk 0:00:05]} 97. Qg7+ {[%clk 0:00:09]}  Kc8 {[%clk 0:00:05]} 98. Qf8+ {[%clk 0:00:09]}  Kb7 {[%clk 0:00:05]} 99. Qe7+ {[%clk 0:00:10]}  Rc7 {[%clk 0:00:05]} 100. Qe4+ {[%clk 0:00:10]}  Rbc6 {[%clk 0:00:06]} 101. Qb4+ {[%clk 0:00:11]}  Kc8 {[%clk 0:00:06]} 102. Qf8+ {[%clk 0:00:11]}  Kb7 {[%clk 0:00:06]} 103. Qb4+ {[%clk 0:00:11]}  Rb6 {[%clk 0:00:05]} 104. Qe4+ {[%clk 0:00:11]}  Ka7 {[%clk 0:00:05]} 105. Qa4+ {[%clk 0:00:11]}  Kb8 {[%clk 0:00:05]} 106. Qe8+ {[%clk 0:00:11]}  Rc8 {[%clk 0:00:05]} 107. Qe5+ {[%clk 0:00:10]}  Kb7 {[%clk 0:00:05]} 108. Qd5+ {[%clk 0:00:11]}  Rbc6 {[%clk 0:00:06]} 109. Qb5+ {[%clk 0:00:11]}  Kc7 {[%clk 0:00:06]} 110. Qe5+ {[%clk 0:00:11]}  Kd7 {[%clk 0:00:07]} 111. Qd5+ {[%clk 0:00:11]}  Ke7 {[%clk 0:00:07]} 112. Qe5+ {[%clk 0:00:11]}  Re6 {[%clk 0:00:08]} 113. Qg7+ {[%clk 0:00:10]}  Ke8 {[%clk 0:00:07]} 114. Qh8+ {[%clk 0:00:11]}  Kd7 {[%clk 0:00:08]} 115. Qd4+ {[%clk 0:00:11]}  Rd6 {[%clk 0:00:08]} 116. Qg7+ {[%clk 0:00:11]}  Kc6 {[%clk 0:00:08]} 117. Qc3+ {[%clk 0:00:11]}  Kb7 {[%clk 0:00:09]} 118. Qb2+ {[%clk 0:00:10]}  Rb6 {[%clk 0:00:09]} 119. Qg7+ {[%clk 0:00:09]}  Rc7 {[%clk 0:00:09]} 120. Qe5 {[%clk 0:00:07]}  Rc4 {[%clk 0:00:07]} 121. Qd5+ {[%clk 0:00:07]}  Rbc6 {[%clk 0:00:07]} 122. Qb5+ {[%clk 0:00:07]}  Kc7 {[%clk 0:00:07]} 123. Qe5+ {[%clk 0:00:07]}  Kb6 {[%clk 0:00:08]} 124. Qe3+ {[%clk 0:00:08]}  Kb5 {[%clk 0:00:08]} 125. Qb3+ {[%clk 0:00:08]}  Kc5 {[%clk 0:00:09]} 126. Qe3+ {[%clk 0:00:08]}  Kd5 {[%clk 0:00:09]} 127. Qd3+ {[%clk 0:00:08]}  Ke5 {[%clk 0:00:10]} 128. Qe3+ {[%clk 0:00:09]}  Re4 {[%clk 0:00:09]} 129. Qg3+ {[%clk 0:00:08]}  Rf4 {[%clk 0:00:07]} 130. Qe3+ {[%clk 0:00:09]}  Kf5 {[%clk 0:00:08]} 131. Qd3+ {[%clk 0:00:09]}  Kf6 {[%clk 0:00:06]} 132. Qd7 {[%clk 0:00:08]}  Re6 {[%clk 0:00:06]} 133. Qd8+ {[%clk 0:00:08]}  Kf7 {[%clk 0:00:06]} 134. Qd7+ {[%clk 0:00:08]}  Re7 {[%clk 0:00:07]} 135. Qd5+ {[%clk 0:00:08]}  Kg7 {[%clk 0:00:07]} 136. Qd6 {[%clk 0:00:07]}  Ref7 {[%clk 0:00:07]} 137. Qe5+ {[%clk 0:00:07]}  R7f6 {[%clk 0:00:07]} 138. Qe7+ {[%clk 0:00:07]}  Rf7 {[%clk 0:00:07]} 139. Qe5+ {[%clk 0:00:07]}  R4f6 {[%clk 0:00:07]} 140. g4 {[%clk 0:00:06]}  Kg6 {[%clk 0:00:06]} 141. Qe4+ {[%clk 0:00:06]}  Kg7 {[%clk 0:00:07]} 142. Qe5 {[%clk 0:00:06]}  Kg8 {[%clk 0:00:07]} 143. Qe8+ {[%clk 0:00:06]}  Rf8 {[%clk 0:00:08]} 144. Qe5 {[%clk 0:00:06]}  Rf4 {[%clk 0:00:08]} 145. Qe6+ {[%clk 0:00:05]}  Kg7 {[%clk 0:00:08]} 146. Qe5+ {[%clk 0:00:06]}  Kh7 {[%clk 0:00:08]} 147. Qe7+ {[%clk 0:00:04]}  R8f7 {[%clk 0:00:08]} 148. Qe6 {[%clk 0:00:05]}  R7f6 {[%clk 0:00:08]} 149. Qe7+ {[%clk 0:00:05]}  Rf7 {[%clk 0:00:08]} 150. Qe6 {[%clk 0:00:05]}  Kg7 {[%clk 0:00:08]} 151. Qe5+ {[%clk 0:00:05]}  R4f6 {[%clk 0:00:09]} 152. Kg2 {[%clk 0:00:04]}  h5 {[%clk 0:00:08]} 153. Qxg5+ {[%clk 0:00:03]}  Rg6 {[%clk 0:00:08]} 154. Qe5+ {[%clk 0:00:02]}  Kg8 {[%clk 0:00:07]} 155. Qxh5 {[%clk 0:00:02]}  Rfg7 {[%clk 0:00:06]} 156. Kh3 {[%clk 0:00:03]}  Kf8 {[%clk 0:00:07]} 157. Qf5+ {[%clk 0:00:03]}  Ke7 {[%clk 0:00:07]} 158. Kg3 {[%clk 0:00:03]}  Re6 {[%clk 0:00:08]} 159. Qc5+ {[%clk 0:00:03]}  Kf7 {[%clk 0:00:08]} 160. Qc8 {[%clk 0:00:04]}  Rg5 {[%clk 0:00:07]} 161. Qc7+ {[%clk 0:00:03]}  Re7 {[%clk 0:00:07]} 162. Qc4+ {[%clk 0:00:04]}  Kg6 {[%clk 0:00:06]} 163. Qd3+ {[%clk 0:00:04]}  Kg7 {[%clk 0:00:07]} 164. Qd4+ {[%clk 0:00:04]}  Kf7 {[%clk 0:00:07]} 165. Qf4+ {[%clk 0:00:04]}  Kg6 {[%clk 0:00:08]} 166. Qd6+ {[%clk 0:00:04]}  Kf7 {[%clk 0:00:07]} 167. Qf4+ {[%clk 0:00:05]}  Kg6 {[%clk 0:00:06]} 168. Qd4 {[%clk 0:00:05]}  Rge5 {[%clk 0:00:06]} 169. Kf4 {[%clk 0:00:05]}  Re1 {[%clk 0:00:06]} 170. Qd3+ {[%clk 0:00:05]}  Kg7 {[%clk 0:00:06]} 171. Kf3 {[%clk 0:00:05]}  R1e6 {[%clk 0:00:06]} 172. Qd4+ {[%clk 0:00:05]}  Kg6 {[%clk 0:00:06]} 173. Qd3+ {[%clk 0:00:05]}  Kg5 {[%clk 0:00:06]} 174. Qd5+ {[%clk 0:00:05]}  Kg6 {[%clk 0:00:06]} 175. Qf5+ {[%clk 0:00:05]}  Kh6 {[%clk 0:00:06]} 176. Qh5+ {[%clk 0:00:05]}  Kg7 {[%clk 0:00:06]} 177. Kg3 {[%clk 0:00:05]}  Re3+ {[%clk 0:00:06]} 178. Kh4 {[%clk 0:00:05]}  R7e4 {[%clk 0:00:06]} 179. Qg5+ {[%clk 0:00:05]}  Kf7 {[%clk 0:00:07]} 180. Qd5+ {[%clk 0:00:05]}  Ke7 {[%clk 0:00:07]} 181. Qc5+ {[%clk 0:00:06]}  Ke6 {[%clk 0:00:08]} 182. Qc6+ {[%clk 0:00:05]}  Kf7 {[%clk 0:00:08]} 183. Kh5 {[%clk 0:00:04]}  Re5+ {[%clk 0:00:07]} 184. g5 {[%clk 0:00:04]}  R5e4 {[%clk 0:00:05]} 185. Qf6+ {[%clk 0:00:04]}  Ke8 {[%clk 0:00:06]} 186. Qc6+ {[%clk 0:00:04]}  Ke7 {[%clk 0:00:06]} 187. Qc5+ {[%clk 0:00:04]}  Ke6 {[%clk 0:00:06]} 188. Qc6+ {[%clk 0:00:04]}  Kf5 {[%clk 0:00:07]} 189. Qd7+ {[%clk 0:00:04]}  Ke5 {[%clk 0:00:07]} 190. g6 {[%clk 0:00:03]}  Rf4 {[%clk 0:00:06]} 191. Kh6 {[%clk 0:00:03]}  Rg3 {[%clk 0:00:06]} 192. Qe7+ {[%clk 0:00:02]}  Kf5 {[%clk 0:00:06]} 193. Qf7+ {[%clk 0:00:02]}  Ke4 {[%clk 0:00:06]} 194. Qe6+ {[%clk 0:00:03]}  Kf3 {[%clk 0:00:07]} 195. Kh7 {[%clk 0:00:03]}  Rh4+ {[%clk 0:00:07]} 196. Kg7 {[%clk 0:00:03]}  Rhg4 {[%clk 0:00:07]} 197. Kf7 {[%clk 0:00:03]}  Rf4+ {[%clk 0:00:07]} 198. Kg7 {[%clk 0:00:03]}  Kg2 {[%clk 0:00:07]} 199. Kh7 {[%clk 0:00:02]}  Rh4+ {[%clk 0:00:07]} 200. Kg7 {[%clk 0:00:03]}  Rd4 {[%clk 0:00:07]} 201. Qc6+ {[%clk 0:00:03]}  Rf3 {[%clk 0:00:07]} 202. Kh7 {[%clk 0:00:03]}  Rh4+ {[%clk 0:00:07]} 203. Kg8 {[%clk 0:00:03]}  Rg4 {[%clk 0:00:07]} 204. g7 {[%clk 0:00:03]}  Kf2 {[%clk 0:00:06]} 205. Qb6+ {[%clk 0:00:03]}  Kg2 {[%clk 0:00:06]} 206. Qc6 {[%clk 0:00:03]}  Kf2 {[%clk 0:00:06]} 207. Kh7 {[%clk 0:00:04]}  Rh3+ {[%clk 0:00:06]} 208. Kg8 {[%clk 0:00:04]}  Rhg3 {[%clk 0:00:07]} 209. Qb6+ {[%clk 0:00:04]}  Kg2 {[%clk 0:00:07]} 210. Qc6+ {[%clk 0:00:04]}  Kh2 {[%clk 0:00:07]} 211. Qd6 {[%clk 0:00:04]}  Rxg7+ {[%clk 0:00:07]} 212. Kf8 {[%clk 0:00:04]}  Rg4 {[%clk 0:00:08]} 213. Qh6+ {[%clk 0:00:05]}  Kg2 {[%clk 0:00:08]} 214. Qd2+ {[%clk 0:00:05]}  Kh3 {[%clk 0:00:09]} 215. Qh6+ {[%clk 0:00:05]}  Rh4 {[%clk 0:00:09]} 216. Qe6+ {[%clk 0:00:05]}  Kh2 {[%clk 0:00:09]} 217. Qe5 {[%clk 0:00:04]}  Rg4 {[%clk 0:00:09]} 218. Kf7 {[%clk 0:00:04]}  Kh3 {[%clk 0:00:07]} 219. Qh8+ {[%clk 0:00:04]}  Kg2 {[%clk 0:00:08]} 220. Qb2+ {[%clk 0:00:03]}  Kh3 {[%clk 0:00:08]} 221. Qh8+ {[%clk 0:00:02]}  Rh4 {[%clk 0:00:09]} 222. Qe5 {[%clk 0:00:02]}  Rf3+ {[%clk 0:00:10]} 223. Kg6 {[%clk 0:00:02]}  Rg4+ {[%clk 0:00:10]} 224. Kh5 {[%clk 0:00:02]}  Rg2 {[%clk 0:00:08]} 225. Qe6+ {[%clk 0:00:02]}  Kh2 {[%clk 0:00:08]} 226. Kh4 {[%clk 0:00:02]}  Rfg3 {[%clk 0:00:09]} 227. Qe5 {[%clk 0:00:02]}  Rg1 {[%clk 0:00:08]} 228. Qf4 {[%clk 0:00:02]}  Rg2 {[%clk 0:00:06]} 229. Qe5 {[%clk 0:00:02]}  Kh1 {[%clk 0:00:04]} 230. Qxg3 {[%clk 0:00:02]}  Rh2+ {[%clk 0:00:05]} 231. Qxh2+ {[%clk 0:00:02]}  Kxh2 {[%clk 0:00:05]} 1/2-1/2

[Event "January 9 Late 2024"]
[Site "https://www.chess.com"]
[Date "2024.01.09"]
[Round "5"]
[White "Daneshvar, Bardiya"]
[Black "Niedbala, Bartlomiej"]
[Result "0-1"]
[Board "35"]
[TimeControl "180+1"]
[WhiteFideId "12576468"]
[BlackFideId "21834008"]
[WhiteElo "2938"]
[BlackElo "2675"]
[WhiteTeam "IRI"]
[BlackTeam "POL"]
[WhiteClock "0:00:18"]
[BlackClock "0:00:18"]

1. b3 {[%clk 0:03:00]}  d5 {[%clk 0:02:58]} 2. Bb2 {[%clk 0:03:01]}  Bf5 {[%clk 0:02:59]} 3. d3 {[%clk 0:03:01]}  e6 {[%clk 0:02:59]} 4. Nd2 {[%clk 0:03:02]}  a5 {[%clk 0:02:59]} 5. e4 {[%clk 0:03:03]}  Bg6 {[%clk 0:02:59]} 6. h4 {[%clk 0:03:01]}  h5 {[%clk 0:02:59]} 7. Ne2 {[%clk 0:02:58]}  Nc6 {[%clk 0:02:37]} 8. Nf4 {[%clk 0:02:57]}  Nge7 {[%clk 0:02:37]} 9. a3 {[%clk 0:02:52]}  e5 {[%clk 0:02:34]} 10. Nxg6 {[%clk 0:02:51]}  Nxg6 {[%clk 0:02:35]} 11. exd5 {[%clk 0:02:46]}  Qxd5 {[%clk 0:02:36]} 12. Qf3 {[%clk 0:02:46]}  Qxf3 {[%clk 0:02:23]} 13. Nxf3 {[%clk 0:02:46]}  f6 {[%clk 0:02:24]} 14. g3 {[%clk 0:02:46]}  Bc5 {[%clk 0:02:23]} 15. Bh3 {[%clk 0:02:46]}  Rd8 {[%clk 0:02:20]} 16. Ke2 {[%clk 0:02:44]}  Kf7 {[%clk 0:02:06]} 17. c3 {[%clk 0:02:41]}  Rhe8 {[%clk 0:02:05]} 18. Nd2 {[%clk 0:02:38]}  Nge7 {[%clk 0:02:00]} 19. b4 {[%clk 0:02:38]}  Ba7 {[%clk 0:01:55]} 20. b5 {[%clk 0:02:31]}  Nb8 {[%clk 0:01:52]} 21. Nc4 {[%clk 0:02:24]}  a4 {[%clk 0:01:52]} 22. Bg2 {[%clk 0:02:21]}  Nd5 {[%clk 0:01:53]} 23. Ne3 {[%clk 0:02:14]}  c6 {[%clk 0:01:48]} 24. Nxd5 {[%clk 0:02:04]}  cxd5 {[%clk 0:01:46]} 25. c4 {[%clk 0:02:00]}  e4 {[%clk 0:01:32]} 26. dxe4 {[%clk 0:01:54]}  dxc4 {[%clk 0:01:28]} 27. Rhc1 {[%clk 0:01:46]}  Bxf2 {[%clk 0:01:28]} 28. Bxf6 {[%clk 0:01:37]}  gxf6 {[%clk 0:01:26]} 29. Kxf2 {[%clk 0:01:37]}  Rd2+ {[%clk 0:01:26]} 30. Kg1 {[%clk 0:01:37]}  Rc8 {[%clk 0:01:26]} 31. e5 {[%clk 0:01:34]}  Rg8 {[%clk 0:01:11]} 32. Bxb7 {[%clk 0:01:04]}  Rxg3+ {[%clk 0:01:06]} 33. Kf1 {[%clk 0:01:00]}  Nd7 {[%clk 0:01:02]} 34. exf6 {[%clk 0:00:48]}  Ne5 {[%clk 0:00:53]} 35. Re1 {[%clk 0:00:37]}  Ng4 {[%clk 0:00:31]} 36. Re2 {[%clk 0:00:30]}  Rd4 {[%clk 0:00:31]} 37. Rg2 {[%clk 0:00:15]}  Rb3 {[%clk 0:00:26]} 38. Kg1 {[%clk 0:00:12]}  Rxb5 {[%clk 0:00:26]} 39. Bc6 {[%clk 0:00:12]}  Ra5 {[%clk 0:00:17]} 40. Re1 {[%clk 0:00:10]}  Kxf6 {[%clk 0:00:15]} 41. Rge2 {[%clk 0:00:09]}  Re5 {[%clk 0:00:13]} 42. Bxa4 {[%clk 0:00:08]}  c3 {[%clk 0:00:12]} 43. Bc2 {[%clk 0:00:06]}  Rd2 {[%clk 0:00:08]} 44. Rf1+ {[%clk 0:00:06]}  Ke7 {[%clk 0:00:08]} 45. Rxd2 {[%clk 0:00:07]}  cxd2 {[%clk 0:00:08]} 46. Rd1 {[%clk 0:00:07]}  Re1+ {[%clk 0:00:08]} 47. Kg2 {[%clk 0:00:07]}  Rxd1 {[%clk 0:00:08]} 48. Bxd1 {[%clk 0:00:07]}  Ne3+ {[%clk 0:00:09]} 49. Kf2 {[%clk 0:00:07]}  Nxd1+ {[%clk 0:00:09]} 50. Ke2 {[%clk 0:00:08]}  Ne3 {[%clk 0:00:07]} 51. Kxd2 {[%clk 0:00:08]}  Nf5 {[%clk 0:00:08]} 52. a4 {[%clk 0:00:07]}  Kd6 {[%clk 0:00:08]} 53. Kd3 {[%clk 0:00:05]}  Nxh4 {[%clk 0:00:08]} 54. Ke4 {[%clk 0:00:05]}  Ng6 {[%clk 0:00:08]} 55. Kf5 {[%clk 0:00:06]}  h4 {[%clk 0:00:08]} 56. Kg4 {[%clk 0:00:06]}  Kc6 {[%clk 0:00:09]} 57. Kh3 {[%clk 0:00:07]}  Kb6 {[%clk 0:00:09]} 58. Kg4 {[%clk 0:00:08]}  Ka5 {[%clk 0:00:10]} 59. Kh3 {[%clk 0:00:08]}  Kxa4 {[%clk 0:00:11]} 60. Kg4 {[%clk 0:00:09]}  Kb4 {[%clk 0:00:12]} 61. Kh3 {[%clk 0:00:10]}  Kc5 {[%clk 0:00:12]} 62. Kg4 {[%clk 0:00:11]}  Kd4 {[%clk 0:00:13]} 63. Kh3 {[%clk 0:00:12]}  Ke5 {[%clk 0:00:14]} 64. Kg4 {[%clk 0:00:13]}  Kf6 {[%clk 0:00:14]} 65. Kh3 {[%clk 0:00:14]}  Kg5 {[%clk 0:00:15]} 66. Kg2 {[%clk 0:00:15]}  Kg4 {[%clk 0:00:16]} 67. Kh2 {[%clk 0:00:15]}  Nf4 {[%clk 0:00:17]} 68. Kg1 {[%clk 0:00:16]}  Kg3 {[%clk 0:00:17]} 69. Kh1 {[%clk 0:00:16]}  h3 {[%clk 0:00:17]} 70. Kg1 {[%clk 0:00:17]}  Nd3 {[%clk 0:00:16]} 71. Kh1 {[%clk 0:00:18]}  Nf2+ {[%clk 0:00:17]} 72. Kg1 {[%clk 0:00:18]}  h2+ {[%clk 0:00:18]} 0-1

[Event "January 9 Late 2024"]
[Site "https://www.chess.com"]
[Date "2024.01.09"]
[Round "5"]
[White "Rosen, Eric"]
[Black "Aravindh, Chithambaram VR."]
[Result "0-1"]
[Board "36"]
[TimeControl "180+1"]
[WhiteFideId "2032562"]
[BlackFideId "5072786"]
[WhiteElo "2672"]
[BlackElo "2931"]
[WhiteTeam "USA"]
[BlackTeam "IND"]
[WhiteClock "0:00:04"]
[BlackClock "0:00:04"]

1. e4 {[%clk 0:03:00]}  Nf6 {[%clk 0:03:00]} 2. e5 {[%clk 0:02:56]}  Nd5 {[%clk 0:03:01]} 3. d4 {[%clk 0:02:53]}  d6 {[%clk 0:03:01]} 4. Nf3 {[%clk 0:02:54]}  dxe5 {[%clk 0:03:00]} 5. Nxe5 {[%clk 0:02:55]}  c6 {[%clk 0:02:58]} 6. Be2 {[%clk 0:02:52]}  Bf5 {[%clk 0:02:56]} 7. c4 {[%clk 0:02:31]}  Nb4 {[%clk 0:02:44]} 8. g4 {[%clk 0:02:31]}  Bxb1 {[%clk 0:02:01]} 9. Rxb1 {[%clk 0:02:27]}  Qxd4 {[%clk 0:01:59]} 10. Qxd4 {[%clk 0:01:57]}  Nc2+ {[%clk 0:01:58]} 11. Kf1 {[%clk 0:01:58]}  Nxd4 {[%clk 0:01:59]} 12. Be3 {[%clk 0:01:58]}  Nxe2 {[%clk 0:01:58]} 13. Kxe2 {[%clk 0:01:59]}  f6 {[%clk 0:01:49]} 14. Nd3 {[%clk 0:01:54]}  e5 {[%clk 0:01:50]} 15. f4 {[%clk 0:01:49]}  exf4 {[%clk 0:01:45]} 16. Bxf4 {[%clk 0:01:48]}  Nd7 {[%clk 0:01:44]} 17. b4 {[%clk 0:01:38]}  Kf7 {[%clk 0:01:33]} 18. b5 {[%clk 0:01:33]}  cxb5 {[%clk 0:01:26]} 19. Rxb5 {[%clk 0:01:27]}  b6 {[%clk 0:01:22]} 20. Rd5 {[%clk 0:01:27]}  Re8+ {[%clk 0:01:12]} 21. Kf3 {[%clk 0:01:21]}  Nc5 {[%clk 0:01:13]} 22. Nb4 {[%clk 0:00:43]}  g5 {[%clk 0:01:09]} 23. Bg3 {[%clk 0:00:37]}  h5 {[%clk 0:00:49]} 24. Nc6 {[%clk 0:00:37]}  hxg4+ {[%clk 0:00:42]} 25. Kxg4 {[%clk 0:00:38]}  Kg6 {[%clk 0:00:28]} 26. Rf1 {[%clk 0:00:38]}  Re4+ {[%clk 0:00:27]} 27. Kf3 {[%clk 0:00:36]}  Rxc4 {[%clk 0:00:28]} 28. Nxa7 {[%clk 0:00:21]}  Ne4 {[%clk 0:00:27]} 29. Nb5 {[%clk 0:00:17]}  Bc5 {[%clk 0:00:20]} 30. Re1 {[%clk 0:00:14]}  g4+ {[%clk 0:00:18]} 31. Ke2 {[%clk 0:00:08]}  Nxg3+ {[%clk 0:00:10]} 32. hxg3 {[%clk 0:00:09]}  Re4+ {[%clk 0:00:07]} 33. Kd1 {[%clk 0:00:07]}  Rxe1+ {[%clk 0:00:06]} 34. Kxe1 {[%clk 0:00:08]}  Rh1+ {[%clk 0:00:06]} 35. Ke2 {[%clk 0:00:05]}  Rh2+ {[%clk 0:00:07]} 36. Kd3 {[%clk 0:00:05]}  Rg2 {[%clk 0:00:05]} 37. Ke4 {[%clk 0:00:03]}  Rxg3 {[%clk 0:00:04]} 38. Kf4 {[%clk 0:00:04]}  Rg2 {[%clk 0:00:04]} 39. a4 {[%clk 0:00:03]}  g3 {[%clk 0:00:03]} 40. a5 {[%clk 0:00:03]}  Rb2 {[%clk 0:00:02]} 41. Kxg3 {[%clk 0:00:01]}  Rxb5 {[%clk 0:00:02]} 42. a6 {[%clk 0:00:01]}  Bf2+ {[%clk 0:00:02]} 43. Kf3 {[%clk 0:00:01]}  Rxd5 {[%clk 0:00:03]} 44. a7 {[%clk 0:00:01]}  Ra5 {[%clk 0:00:04]} 45. Kg2 {[%clk 0:00:02]}  Rxa7 {[%clk 0:00:04]} 46. Kh1 {[%clk 0:00:02]}  Ra2 {[%clk 0:00:04]} 47. Kg2 {[%clk 0:00:02]}  Kf5 {[%clk 0:00:04]} 48. Kh1 {[%clk 0:00:03]}  Kg4 {[%clk 0:00:05]} 49. Kg2 {[%clk 0:00:03]}  Bg3+ {[%clk 0:00:04]} 50. Kh1 {[%clk 0:00:04]}  Kf3 {[%clk 0:00:04]} 0-1